{"text_format":"2","workbook":"xlsx","n_sheets":3,"sheets":["Összesítő","Falazás és egyéb kőművesmunkák","Villanyszerelés"],"not_rendered":{"charts":0,"images":0,"macros":0,"external_links":0,"defined_names":0,"comments":0,"pivot_tables":0},"unopened":[],"bounds":{"document_bytes":16777216,"sheet_cells":100000,"run_cost":"one","rows_first":2000,"rows_last":500,"rows_between":2000,"halvings":0,"cell_chars":16384,"cell_head_chars":4096},"cells_cut":0,"cells_raw":0,"read":"whole","date_system":"1900"}

{"sheet":"Összesítő","index":0,"n_rows":4,"n_cols":3,"rows_kept":4,"cut":false,"hidden":false,"merged":[]}
["Munkanem megnevezése","Anyag összege","Díj összege"]
["Falazás és egyéb kőművesmunkák",{"$f":"'Falazás és egyéb kőművesmunkák'!H4","v":0},0]
["Villanyszerelés",0,0]
["Összesen:",{"$f":"SUM(B2:B3)","v":0},{"$f":"SUM(C2:C3)","v":0}]

{"sheet":"Falazás és egyéb kőművesmunkák","index":1,"n_rows":4,"n_cols":9,"rows_kept":4,"cut":false,"hidden":false,"merged":[]}
["Ssz.","Tételszám","Tétel szövege","Menny.","Egység","Anyag egységár","Díj egységre","Anyag összesen","Díj összesen"]
[1,"33-00-035-0000000","Faláttörés 30x30 cm méretig, téglafalban, 25 cm falvastagságig",10,"db     ",0,0,{"$f":"D2*F2","v":0},{"$f":"D2*G2","v":0}]
[2,"33-00-044-0000000","Födémáttörés 30x30 cm méretig, 30 cm födémvastagságig, vasbetonlemez födémben",3,"db     ",0,0,{"$f":"D3*F3","v":0},0]
[null,null,"Munkanem összesen:",{"$nulls":4},{"$f":"SUM(H2:H3)","v":0},{"$f":"SUM(I2:I3)","v":0}]

{"sheet":"Villanyszerelés","index":2,"n_rows":20,"n_cols":9,"rows_kept":20,"cut":false,"hidden":false,"merged":[]}
["Ssz.","Tételszám","Tétel szövege","Menny.","Egység","Anyag egységár","Díj egységre","Anyag összesen","Díj összesen"]
[1,"71-01-061-0627095","Tömszelence elhelyezése bármely anyagból, bármely méretben Schrack polyamid tömszelence Pg 16",16,"db     ",0,0,{"$f":"D2*F2","v":0},{"$f":"D2*G2","v":0}]
[2,"71-01-099-0535224","Vezetékcsatorna, padlószegélycsatorna, falicsatorna elhelyezése előre elkészített tartószerkezetre szerelve, idomdarabokkal, műanyagból, szélesség:  40 mm-ig IBOCO TA-EN  40x40 WO",80,"m      ",0,0,{"$f":"D3*F3","v":0},{"$f":"D3*G3","v":0}]
[3,"71-01-099-0535426","Vezetékcsatorna, padlószegélycsatorna, falicsatorna elhelyezése előre elkészített tartószerkezetre szerelve, idomdarabokkal, műanyagból, szélesség:  40 mm-ig IBOCO TMU 25/1x17",45,"m      ",0,0,{"$f":"D4*F4","v":0},{"$f":"D4*G4","v":0}]
[4,"71-01-100-0538508","Vezetékcsatorna, padlószegélycsatorna, falicsatorna elhelyezése előre elkészített tartószerkezetre szerelve, idomdarabokkal, műanyagból, szélesség:  41 - 70 mm-ig IBOCO komplett vezetékcsatorna 40/60,",28,"m      ",0,0,{"$f":"D5*F5","v":0},{"$f":"D5*G5","v":0}]
[5,"71-02-026-0217093","Kábelszerű vezeték elhelyezése előre elkészített tartószerkezetre, 1-5 erű, réz vagy alumínium érrel, elágazó dobozokkal és kötésekkel, szigetelés méréssel, a szerelvényekhez csatlakozó vezetékvégek bekötése nélkül, keresztmetszet: 1,5-2,5 mm2 MT 300/500",160,"m      ",0,0,{"$f":"D6*F6","v":0},{"$f":"D6*G6","v":0}]
[null,null,"V műanyag tömlő vezeték 3x2,5 mm2, hajlékony rézvezetővel, /H05VV-F/"]
[6,"71-02-029-0221570","Kábelszerű vezeték elhelyezése előre elkészített tartószerkezetre, 1-5 erű, réz vagy alumínium érrel, elágazó dobozokkal és kötésekkel, szigetelés méréssel, a szerelvényekhez csatlakozó vezetékvégek bekötése nélkül, keresztmetszet: 10 mm2 MBcu 300/500 V ",30,"m      ",0,0,{"$f":"D8*F8","v":0},{"$f":"D8*G8","v":0}]
[null,null,"5x10 mm2, tömör rézvezetővel, /NYM/"]
[7,"71-03-041-0000000","Szigetelt érvéghüvely rögzítése vezetékre, adagoló sajtoló szerszámmal, 0,5 - 6 mm2",100,"db     ",0,0,{"$f":"D10*F10","v":0},{"$f":"D10*G10","v":0}]
[8,"71-03-062-0630007","Fésűs sín felszerelése kismegszakítókra, 14 - 57 modul méretig",1,"db     ",0,0,0,0]
[9,"71-07-202-0315072","Egyéb kéziműködtetésű terheléskapcsoló elhelyezése, modulális kivitelben, 3p 80A",1,"db     ",0,0,0,0]
[10,"71-07-211-0313952","Egyéb kéziműködtetésű terheléskapcsoló elhelyezése, tokozott kivitelben, 63 A-ig műanyagtokozású, 40A",8,"db     ",0,0,0,0]
[11,"71-08-063-0623382","Kismegszakítók elhelyezése kalapsínes szerelőlapra 10 kA zárlati szilárdsággal, \"B\", \"C\" és \"D\" jelleggörbével, 3 pólusú  3P 50A C kismegszakító.",1,"db     ",0,0,0,0]
[12,"71-08-063-0623383","Kismegszakítók elhelyezése kalapsínes szerelőlapra 10 kA zárlati szilárdsággal, \"B\", \"C\" és \"D\" jelleggörbével, 3 pólusú 3P 63A C kismegszakító",1,"db     ",0,0,0,0]
[13,"71-08-102-0123053","Áram-védőkapcsolók elhelyezése, váltakozó- és pulzáló egyenáramú kioldásra, gyorskioldással (6...40 ms), 10 kA zárlati szilárdsággal, 2 pólusú kombinált C16A-C20A \"Legrand Kontavill\" LEXIC DX áram-védőkapcsoló, 2P 30mA, 40A, R: 09057",5,"db     ",0,0,0,0]
[14,"71-09-034-0624172","Áramköri elosztók, falon kívüli elhelyezéssel, kalapsínes szerelőlappal, max. 125A-ig, (kismegszakítók, védőkapcsolók, stb. számára), helyszínen összeszerelve, kiselosztók 24 egység",1,"db     ",0,0,0,0]
[15,"71-13-045-0121006","Szerelési segédanyag",1,"kszl.  ",0,0,0,0]
[16,"71-13-046-0000000","Érintésvédelmi mérés és jegyzőkönyv készítése",1,"jk.    ",0,0,0,0]
[null,null,"Munkanem összesen:",{"$nulls":4},{"$f":"SUM(H2:H19)","v":0},{"$f":"SUM(I2:I19)","v":0}]